Cogmind - Beta 15 @@@ ROGUE MODE // 2025.06.15 @ 15:30:17 Player: kim.jet.wav Result: Smashed by cave-in Performance ------------- Evolutions (0) 0 Regions Visited (2) 400 Robots Destroyed (12) 60 Value Destroyed (179) 179 Prototype IDs (0) 0 Alien Tech Used (0) 0 Bonus (0) 0 TOTAL SCORE: 639 Bonus ------- None Cogmind --------- Core Integrity 0/250 Matter 295/300 Energy 100/100 System Corruption 22% Temperature Cool (0) Movement Core (50) Location -10/Mines Parts ------- > --- POWER (1) -------- (None) > --- PROPULSION (2) --- (None) > --- UTILITY (2) ------ (None) > --- WEAPON (2) ------- (None) > --- INVENTORY (5) ---- Light Ion Engine Improved Terrain Scanner EM Pulse Gun Medium Laser Datajack Peak State ------------ > --- POWER ------------ Light Ion Engine > --- PROPULSION ------- Aluminum Leg Aluminum Leg > --- UTILITY ---------- Small Storage Unit Seismic Detector > --- WEAPON ----------- EM Pulse Gun EM Pulse Gun > --- INVENTORY -------- Light Ion Engine Medium Laser [Rating: 7] Favorites ----------- Power Light Ion Engine Engine Light Ion Engine Propulsion Aluminum Leg Leg Aluminum Leg Utility Small Storage Unit Device Seismic Detector Storage Small Storage Unit Weapon EM Pulse Gun Energy Gun EM Pulse Gun Launcher Grenade Launcher Special Weapon Mining Laser Build | -11 -10 -10 ------- Run | Yrd Mat Min Slots Evolved . | . . . Power . | . . . Propulsion . | . . . Utility . | . . . Weapon . | . . . Parts Attached 10 | 7 1 2 Power 1 | 1 . . Engine 1 | 1 . . Core . | . . . Reactor . | . . . Propulsion 2 | 2 . . Treads . | . . . Leg 2 | 2 . . Wheel . | . . . Hover . | . . . Flight . | . . . Utility 2 | 2 . . Device 1 | 1 . . Storage 1 | 1 . . Processor . | . . . Hackware . | . . . Protection . | . . . Artifact . | . . . Weapon 5 | 2 1 2 Energy Gun 3 | 2 1 . Energy Cannon . | . . . Ballistic Gun . | . . . Ballistic Cannon . | . . . Launcher 1 | . . 1 Special Weapon 1 | . . 1 Impact Weapon . | . . . Slashing Weapon . | . . . Piercing Weapon . | . . . Special Melee Weapon . | . . . Unidentified Prototypes . | . . . Parts Lost 8 | . . 8 Power 1 | . . 1 Propulsion 2 | . . 2 Utility 3 | . . 3 Weapon 2 | . . 2 Highest Loss Streak 6 | . . 6 To Critical Strikes . | . . . Average Backups 5 | 1 4 6 Power . | . 1 1 Propulsion . | . . . Utility 1 | . 1 1 Weapon 1 | . 1 2 Tool/Special . | . . . Unused Backups 3 | . . 3 Power 1 | . . 1 Propulsion . | . . . Utility 1 | . . 1 Weapon . | . . . Tool/Special 1 | . . 1 Average Slot Usage (%) 88 | . 100 70 Engine 12 | . 14 10 Leg 24 | . 28 18 Device 11 | . 14 8 Storage 12 | . 14 10 Energy Gun 20 | . 28 8 Launcher 3 | . . 8 Special Weapon 1 | . . 4 Peak Build Rating 7 | 7 7 7 Average Rating 6 | 5 7 4 On Entrance 4 | . 7 7 Naked Turns 63 | . . 63 Heaviest Build 14 | 13 13 14 Greatest Support 20 | 20 20 20 Greatest Overweight (x) 3 | 3 . . Average Overweight (x) . | . . . Largest Inventory Capacity 8 | 8 8 8 Average Capacity 7 | 7 8 7 Most Carried 7 | 3 6 7 Average Carried 5 | 1 4 6 Final Capacity 8 | 8 8 5 Final Carried 6 | 3 6 5 Class Distribution -------------------- 100% | Mutant Dominant Class ---------------- Mutant | -10/Materials Mutant | -10/Mines Resources | -11 -10 -10 ----------- Run | Yrd Mat Min Matter Collected 290 | 270 10 10 Remotely . | . . . Salvage Created 255 | 30 168 57 Parts 21 | 3 13 5 Haulers Intercepted . | . . . Recyclers Shooed . | . . . Parts Field Recycled . | . . . Retrieved Matter . | . . . Parts Self-Destructed . | . . . Prevented . | . . . Kills | -11 -10 -10 ------- Run | Yrd Mat Min Combat Hostiles Destroyed 8 | . 5 3 Guns 7 | . 4 3 AOE 1 | . 1 . Classes Destroyed 5 | 1 4 . Worker 1 | . 1 . Tunneler 2 | 2 . . Operator 1 | . 1 . Swarmer 6 | . 3 3 Grunt 2 | . 2 . Best Kill Streak 3 | 2 3 3 Combat Bots Only 3 | . 2 3 Max Kills in Single Turn 2 | 1 2 1 Gunslinging . | . . . Exploded 1 | . 1 . Melee . | . . . Uniques/NPCs Destroyed . | . . . Combat | -11 -10 -10 -------- Run | Yrd Mat Min Hostile Shots Fired 29 | . 13 16 Missed 13 | . 8 5 Hits 16 | . 5 11 Projectile 16 | . 5 11 Damage Taken 1021 | 19 69 933 Core 269 | 19 . 250 Absorbed by Shields . | . . . Core Remaining (%) 92 | 92 . . Volleys Fired 29 | 4 14 11 Largest 2 | 2 2 2 Hottest 100 | 80 90 100 Shots Fired 54 | 8 28 18 Gun 48 | 8 28 12 Cannon . | . . . Launcher 1 | . . 1 Special 5 | . . 5 Kinetic . | . . . Thermal 12 | . 1 11 Explosive 1 | . . 1 Electromagnetic 41 | 8 27 6 Robot Hit Streak 8 | 3 8 3 Robot Miss Streak 5 | 2 3 5 Penetration Max . | . . . Secondary Targets 2 | . 1 1 Max Gunslinging Chain 1 | . 1 1 Shots Hit Robots 25 | 4 17 4 Core Hits 13 | 2 8 3 Critical Kills . | . . . Critical Parts Destroyed . | . . . Critical Strikes 1 | . 1 . Corrupt 1 | . 1 . Melee Attacks . | . . . Impact . | . . . Slashing . | . . . Piercing . | . . . Sneak Attacks . | . . . Combat Hostiles . | . . . Follow-up Attacks . | . . . Damage Inflicted 403 | 87 270 46 Guns 288 | 40 202 46 Cannons . | . . . Explosions 115 | 47 68 . Melee . | . . . Ramming . | . . . Kinetic . | . . . Thermal 127 | 47 68 12 Explosive . | . . . Electromagnetic 276 | 40 202 34 Impact . | . . . Slashing . | . . . Piercing . | . . . Highest Corruption 22 | . . 22 Average Corruption 16 | . . 16 Corruption Purged . | . . . Corruption Blocked . | . . . Effects 7 | . . 7 Message Errors 2 | . . 2 Matter Fused 2 | . . 2 Data Loss (minor) 2 | . . 2 Misfires 1 | . . 1 Overload Shots . | . . . Overflow Damage . | . . . Projectiles . | . . . Explosions . | . . . Melee . | . . . Knockbacks . | . . . Impact . | . . . Kinetic . | . . . Secondary . | . . . Self-Inflicted Damage 62 | 19 22 21 Shots 3 | 1 1 1 Rammed . | . . . Targets Rammed . | . . . Kicked . | . . . Crushed . | . . . Highest Temperature 144 | 84 96 144 Average Temperature 37 | 43 30 44 Received Heat Transfer 12 | . 12 . Siege Activations . | . . . Martial Activations . | . . . Shielding Activations . | . . . Robots Disrupted . | . . . Combat Hostiles . | . . . Robots Corrupted . | . . . Combat Hostiles . | . . . Parts Fried . | . . . Impact Corruptions . | . . . Robots Melted . | . . . Combat Hostiles . | . . . Parts Melted . | . . . Heat Transferred 187 | 50 100 37 Parts Sabotaged . | . . . Parts Stolen . | . . . Parts Stripped . | . . . Power Chain Reactions 2 | 1 1 . Alert | -11 -10 -10 ------- Run | Yrd Mat Min Maximum Alert Level . | . . . Low Security (%) 100 | 100 100 100 Level 1 . | . . . Level 2 . | . . . Level 3 . | . . . Level 4 . | . . . Level 5 . | . . . High Security . | . . . Max Security . | . . . Peak Influence 119 | 10 119 60 Initial . | . . . Average 28 | 1 41 13 Influence Increases 289 | 10 208 71 Destroy 0b10 Robot/C 160 | . 100 60 Destroy 0b10 Robot/NC 20 | 10 10 . Destroy Leader 30 | . 20 10 Successful Hack 12 | . 12 . Disable Machine 30 | . 30 . Destroy Structure 7 | . 6 1 Lose Combat Pursuer 30 | . 30 . Influence Decreases 289 | 10 208 71 Time Decay 289 | 10 208 71 Squads Dispatched 1 | . 1 . Investigation . | . . . Extermination . | . . . Reinforcement 1 | . 1 . Assault . | . . . Garrison . | . . . Intercept . | . . . Searches Triggered . | . . . Construction Impeded . | . . . Haulers Reinforced . | . . . Active Scanning Responses . | . . . Cargo Convoy Interrupts . | . . . Stealth | -11 -10 -10 --------- Run | Yrd Mat Min Distress Signals 2 | . 1 1 Communications Jammed . | . . . Distress Signals . | . . . Times Spotted 15 | . 12 3 Peak Tracking Total 3 | . 3 3 Tactical Retreats 2 | . 2 . Traps | -11 -10 -10 ------- Run | Yrd Mat Min Traps Triggered . | . . . Indirectly . | . . . Trap Hack Attempts . | . . . Triggered . | . . . Disarmed . | . . . Reprogrammed . | . . . Reused . | . . . Traps Extracted . | . . . Installed . | . . . Triggered . | . . . Machines | -11 -10 -10 ---------- Run | Yrd Mat Min Machines Disabled 2 | . 2 . Max in Single Turn 1 | . 1 . Machines Repaired . | . . . Machines Dismantled . | . . . Machines Sabotaged . | . . . Overloaded Fab Kills . | . . . Hacking | -11 -10 -10 --------- Run | Yrd Mat Min Machines Accessed 3 | . 3 . Terminals 3 | . 3 . Fabricators . | . . . Repair Stations . | . . . Recycling Units . | . . . Scanalyzers . | . . . Garrison Access . | . . . Total Hacks 4 | . 4 . Successful 3 | . 3 . Failed 1 | . 1 . Catastrophic . | . . . Database Lockouts . | . . . Manual 3 | . 3 . Terminals 4 | . 4 . Fabricators . | . . . Repair Stations . | . . . Recycling Units . | . . . Scanalyzers . | . . . Garrison Access . | . . . Terminal Hacks 2 | . 2 . Locate Traps 1 | . 1 . Recall Reinforcements 1 | . 1 . Fabricator Hacks . | . . . Repair Station Hacks . | . . . Recycling Unit Hacks . | . . . Scanalyzer . | . . . Garrison Access Hacks . | . . . Unauthorized Hacks 1 | . 1 . Terminals 1 | . 1 . Assimilate 1 | . 1 . Fabricators . | . . . Repair Stations . | . . . Recycling Units . | . . . Scanalyzers . | . . . Garrison Access . | . . . Data Cores Recovered 1 | . 1 . Used . | . . . Hacking Detections 2 | . 2 . Full Trace Events . | . . . Feedback Events . | . . . Feedback Blocked . | . . . Robot Schematics Acquired . | . . . Robots Built . | . . . Authchips . | . . . Time . | . . . Total Robot Build Rating . | . . . Part Schematics Acquired . | . . . Parts Built . | . . . Authchips . | . . . Time . | . . . Total Part Build Rating . | . . . Parts Repaired . | . . . Time . | . . . Parts Recycled . | . . . Recycled Matter . | . . . Retrieved Matter . | . . . Retrieved Components . | . . . Parts Scanalyzed . | . . . Part Schematics Acquired . | . . . Parts Damaged . | . . . Bothacking | -11 -10 -10 ------------ Run | Yrd Mat Min Used RIF Installer . | . . . Robots Hacked . | . . . Non-combat . | . . . Combat . | . . . Robot Hacks Applied . | . . . Relay Couplers Released . | . . . Fabnet Peak Effective % . | . . . Robots Rewired . | . . . Allies Hacked . | . . . Hacks Repelled . | . . . Allies | -11 -10 -10 -------- Run | Yrd Mat Min Total Allies 1 | . . 1 Largest Group 1 | . . 1 Highest-Rated Group 31 | . . 31 Highest-Rated Ally 31 | . . 31 Total Orders . | . . . Ally Attacks . | . . . Total Damage . | . . . Kills . | . . . Allies Corrupted 1 | . . 1 Allies Melted . | . . . Intel | -11 -10 -10 ------- Run | Yrd Mat Min Active Infowar (turns) 731 | 9 525 197 Seismic 731 | 9 525 197 Robot Analysis Total . | . . . Derelict Logs Recovered 1 | . . 1 Drone Launches . | . . . Drone Recoveries . | . . . Exploration | -11 -10 -10 ------------- Run | Yrd Mat Min Turns Passed 940 | 91 525 324 Spaces Moved 477 | 51 328 98 Core 14 | 14 . . Treads . | . . . Legs 463 | 37 328 98 Wheels . | . . . Hover . | . . . Flight . | . . . Fastest Speed 50 | 50 120 120 Average Speed 120 | 128 120 120 Slowest Speed 200 | 200 120 120 Overloaded Moves . | . . . Propulsion Burnouts . | . . . Robots Hopped . | . . . Potential Cave-ins 3 | . . 3 Cave-ins Triggered 5 | . . 5 Exploration Rate (%) 29 | 4 46 38 Regions Visited 2 Branch Regions 1 Pre-discovered Areas 1 | . . 1 Known Exits Taken . | . . . Unknown Exits Taken 2 | 1 1 . Scrap Searched . | . . . Spaces Dug 5 | . . 5 Terrain Destroyed 15 | . 5 10 Melee . | . . . Projectile 5 | . . 5 AOE 10 | . 5 5 Terrain Rammed . | . . . Walls Destroyed . | . . . Machines Disabled . | . . . Actions | -11 -10 -10 --------- Run | Yrd Mat Min Total 773 | 65 431 277 Wait 252 | 1 86 165 Move 475 | 50 327 98 Hop . | . . . Pick Up 7 | 3 3 1 Fast Attach 7 | 7 . . Attach . | . . . Detach . | . . . Swap 3 | . 1 2 Drop . | . . . Fire 29 | 4 14 11 Melee . | . . . Ram . | . . . Kick . | . . . Crush . | . . . Escape Stasis . | . . . Rewire . | . . . Trap . | . . . Miscellaneous . | . . . Route ------- -11/Scrapyard -10/Materials (discovered 2 exits: [*Mat] / [*Min]) -10/Mines History --------- Turn | Location | Event 11 | -11/Scrapyard | Discovered new exit (range 16) 92 | -11/Scrapyard | Entered Materials 328 | -10/Materials | Build established: Mutant 389 | -10/Materials | Discovered new exit (range 11) 479 | -10/Materials | Discovered new exit (range 3) 617 | -10/Materials | Entered Mines 682 | -10/Mines | Assembled infested the area 705 | -10/Mines | Learned location of Zion (-7) 718 | -10/Mines | Received a Mining Laser from a helpful Derelict 814 | -10/Mines | Crushed by falling debris 851 | -10/Mines | Crushed by falling debris 851 | -10/Mines | System corruption reached 10% 879 | -10/Mines | Crushed by falling debris 879 | -10/Mines | Core integrity fell below 50% 910 | -10/Mines | Lost 6 parts (1p1n2u2w) 918 | -10/Mines | Crushed by falling debris 918 | -10/Mines | Core integrity fell below 20% 942 | -10/Mines | Crushed by falling debris 942 | -10/Mines | Smashed by cave-in Last Messages --------------- 00851_ Mining Laser destroyed. 00851_ System corrupted by crushing effect (+3). 00851_ Lgt. Ion Engine destroyed. 00851_ System corrupted by crushing effect (+5). 00851_ Aluminum Leg destroyed. 00851_ System corrupted by crushing effect (+4). 00860_ System corrupted: FCS attempts to trigger Grenade Launcher. 00860_ System corrupted: Grenade Launcher misfires. 00878_ System corrupted: Component data lost. 00879_ The unstable cave ceiling collapses. 00879_ Crushed by falling debris. 00879_ Grenade Launcher destroyed. 00879_ System corrupted by crushing effect (+3). 00900_ = 340:FA6T ,FYO0MLKN9